Workbook

Sheet 1
B2: シート名 | C2: 区分 | D2: 手数料(円) | E2: 使用料 | F2: 摘要
B3: 01土地改良施設 | C3: 土地改良施設の使用申請 | D3: 3000 | E3: 使用区分による
B4: 02開発許可 | C4: 開発許可による同意申請 | D4: － | E4: －
B5: 03排水同意 | C5: 開発許可、浄化槽以外の排水同意 | D5: － | E5: －
B6: 04浄化槽排水 | C6: 浄化槽の新設、更新による申請 | D6: 7000 | E6: 直接排水、人槽による
B7: 05水路 | C7: 水路使用、一時使用申請 | D7: 3000 | E7: 使用区分による
B8: 06駐車場 | C8: 駐車場一時使用申請書 | D8: － | E8: 使用日数による
C9: ※月契約等は別途様式
B10: 07同_建築 | C10: 建築確認申請による橋梁の使用同意申請 | D10: － | E10: －
B11: 08変更、変更１ | C11: 各種使用の変更、廃止届け | D11: － | E11: －

Sheet 01施設使用
N1: 記入例
G2: 令和 年 月 日 | S2: 令和 年 月 日
B3: 伊達西根堰土地改良区 | N3: 伊達西根堰土地改良区
B4: 理事長 佐久間 利 信 殿 | N4: 理事長 佐久間 利 信 殿
F5: 〒 | R5: 〒969-1607
D6: 申請者 | E6: 住 所 | P6: 申請者 | Q6: 住 所 | R6: 伊達郡桑折町字西段１９番地
E8: 氏 名 | K8: 印 | Q8: 氏 名 | R8: 佐久間 利 信 | W8: 印
F9: 電話（ | G9: － － | J9: ） | R9: 電話（ | S9: － － | V9: ）
B11: 土地改良施設使用申請書 | N11: 土地改良施設使用申請書
B13: このたび下記により、貴土地改良区管理に係る施設を使用したいので、ご許可下されたく申請します。 | N13: このたび下記により、貴土地改良区管理に係る施設を使用したいので、ご許可下されたく申請します。
O15: 西根上堰用水路
B16: 使用の場所 | N16: 使用の場所 | O16: 伊達郡桑折町大字万正寺字芝堤１７－１地先
B19: 使用目的 | N19: 使用目的 | O19: 工事による仮設橋梁設置
B22: 工作物の種類、数量 | N22: 工作物の種類、数量 | O22: 鋼製橋梁 巾５ｍ 長さ６ｍ A=３０㎡
B24: 使用期間 | C24: 自 令和 年 月 日 | N24: 使用期間 | O24: 自 令和 年 月 日
C25: 至 令和 年 月 日 | O25: 至 令和 年 月 日
B26: 履行措置 | C26: 貴改良区における事業に支障を来す時や施設を損傷した場合は、自己の負担により撤去、移転及び復旧し、使用目的が解除した時もすみやかに届け出、原形に復旧します。 | N26: 履行措置 | O26: 貴改良区における事業に支障を来す時や施設を損傷した場合は、自己の負担により撤去、移転及び復旧し、使用目的が解除した時もすみやかに届け出、原形に復旧します。
B27: その他必要事項 | C27: 施設の更新又は廃止する場合は申請します。 | N27: その他必要事項 | O27: 施設の更新又は廃止する場合は申請します。
C29: １．位置図 | O29: １．位置図
B30: 添付書類 | C30: １．工作物構造図（平面図、断面図、構造図） | N30: 添付書類 | O30: １．工作物構造図（平面図、断面図、構造図）
C31: １．構造計算書 | O31: １．構造計算書
B33: ※添付書類は必要に応じて提出すること。 | N33: ※添付書類は必要に応じて提出すること。

Sheet 02開発許可
B1: 様式第４号（第１２条第２項関係）
K2: 令和 年 月 日
B3: 伊達西根堰土地改良区
B4: 理事長 佐久間 利 信 殿
F5: 〒
D6: 申請者 | E6: 住 所
E8: 氏 名 | K8: 印
F9: 電話（ | G9: － － | J9: ）
B11: 開発許可申請に伴う西根堰への排水同意について
B13: このたび下記により、貴土地改良区管理に係る施設を使用し排水放流したいので、ご同意されたく申請します。
B16: 使用の場所
B19: 使用目的
B20: （放流の種類）
B22: 工作物の種類、数量
C23: ※面積等を記載
B25: 使用開始期間 | C25: ’令和 年 月 日
C26: ※予定年月日を記載
B27: 履行措置 | C27: 貴改良区における事業に支障を来す時や施設を損傷した場合は、自己の負担により撤去、移転及び復旧し、使用目的が解除した時もすみやかに届け出、原形に復旧します。
B28: その他必要事項
C29: １．位置図 | I29: ※排水経路等を記載
C30: １．工作物構造図（平面図、断面図、構造図）
B31: 添付書類 | C31: １．水質試験表（又は処理水質表）
C32: １．流量計算書
B34: ※添付書類は必要に応じて提出すること。

Sheet 03排水同意
B1: 様式第１号（第２条第１項及び第１２条関係）
K2: 令和 年 月 日
B3: 伊達西根堰土地改良区
B4: 理事長 佐久間 利 信 殿
F5: 〒
D6: 申請者 | E6: 住 所
E8: 氏 名 | K8: 印
F9: 電話（ | G9: － － | J9: ）
B11: 土地改良施設（西根堰）への排水同意について
B13: このたび下記により、貴土地改良区管理に係る施設を使用し排水放流したいので、ご同意されたく申請します。
B16: 使用の場所
B19: 使用目的
B20: （放流の種類）
B22: 工作物の種類、数量
B25: 使用開始期間 | C25: 令和 年 月 日
C26: ※予定年月日を記載
B27: 履行措置 | C27: 貴改良区における事業に支障を来す時や施設を損傷した場合は、自己の負担により撤去、移転及び復旧し、使用目的が解除した時もすみやかに届け出、原形に復旧します。
B28: その他必要事項
C29: １．位置図 | I29: ※排水経路等を記載
C30: １．工作物構造図（平面図、断面図、構造図）
B31: 添付書類 | C31: １．水質試験表（又は処理水質表）
C32: １．流量計算書
B34: ※添付書類は必要に応じて提出すること。

Sheet 04浄化槽
B1: 様式第１号（第２条第１項及び第１２条関係） | N1: 様式第１号（第２条第１項及び第１２条関係） | Q1: 記入例
K2: 令和 年 月 日 | W2: 令和 年 月 日
B3: 伊達西根堰土地改良区 | N3: 伊達西根堰土地改良区
B4: 理事長 佐久間 利 信 殿 | N4: 理事長 佐久間 利 信 殿
F5: 〒 | R5: 〒969-1607
D6: 申請者 | E6: 住 所 | P6: 申請者 | Q6: 住 所 | R6: 伊達郡桑折町字西段１９番地
E8: 氏 名 | K8: 印 | Q8: 氏 名 | R8: 佐久間 利 信 | W8: 印
F9: 電話（ | G9: － － | J9: ） | R9: 電話（ | S9: － － | V9: ） | AF9: 印
B11: 土地改良施設使用（排水放流）申請書 | N11: 土地改良施設使用（排水放流）申請書
B13: このたび下記により、貴土地改良区管理に係る施設を使用（排水放流）したいので、ご許可下されたく申請します。 | N13: このたび下記により、貴土地改良区管理に係る施設を使用（排水放流）したいので、ご許可下されたく申請します。
B16: 使用の場所 | N16: 使用の場所 | O16: 伊達郡桑折町字西段１９番地
B19: 使用目的 | N19: 使用目的 | O19: 浄化槽排水
B20: （放流の種類） | N20: （放流の種類）
B22: 工作物の種類、数量 | N22: 工作物の種類、数量 | O22: 合併処理浄化槽（５人槽）
B24: 使用期間 | C24: 自 令和 年 月 日 | N24: 使用期間 | O24: 自 令和 年 月 日
C25: 至 令和 年 月 日 | O25: 至 令和 年 月 日
B26: 履行措置 | C26: 貴改良区における事業に支障を来す時や施設を損傷した場合は、自己の負担により撤去、移転及び復旧し、使用目的が解除した時もすみやかに届け出、原形に復旧します。 | N26: 履行措置 | O26: 貴改良区における事業に支障を来す時や施設を損傷した場合は、自己の負担により撤去、移転及び復旧し、使用目的が解除した時もすみやかに届け出、原形に復旧します。
B27: その他必要事項 | C27: 施設の更新又は廃止する場合は申請します。 | N27: その他必要事項 | O27: 施設の更新又は廃止する場合は申請します。
C29: １．位置図 | O29: １．位置図
B30: 添付書類 | C30: １．工作物構造図（平面図、断面図、構造図） | N30: 添付書類 | O30: １．工作物構造図（平面図、断面図、構造図）
C31: １．水質試験表（又は処理水質表） | O31: １．水質試験表（又は処理水質表）
B33: ※添付書類は必要に応じて提出すること。 | N33: ※添付書類は必要に応じて提出すること。
C38: 請 書 | O38: 請 書
B40: 伊達酉根堰土地改良区の管理に係る施設に排水することについては、許可を受けました。 つきましては、土地改良施設使用に関する規程に定められた条件を遵守するほか、下記条件を誠実に履行し、貴土地改良区及び組合員に損失を与える如き行為をしないことを誓います。 よってその証として請書を提出いたします | N40: 伊達酉根堰土地改良区の管理に係る施設に排水することについては、許可を受けました。 つきましては、土地改良施設使用に関する規程に定められた条件を遵守するほか、下記条件を誠実に履行し、貴土地改良区及び組合員に損失を与える如き行為をしないことを誓います。 よってその証として請書を提出いたします
I46: 令和 年 月 日 | U46: 令和 年 月 日
B48: 伊達西根堰土地改良区 | N48: 伊達西根堰土地改良区
B49: 理事長 佐久間 利信 殿 | N49: 理事長 佐久間 利信 殿
D51: 放水者 | E51: 住 所 | P51: 放水者 | Q51: 住 所 | R51: 伊達郡桑折町字西段１９番地
E53: 氏 名 | J53: , | Q53: 氏 名 | R53: 佐久間 利 信 | V53: ,
E55: 記 | Q55: 記
B58: １．維持管理補償金 一金 | F58: 円也を毎年度貴土地改良区 | N58: １．維持管理補償金 一金 | R58: 円也を毎年度貴土地改良区
B59: が発行する納入通知書により指定期日の５月３１目まで納入する。 | N59: が発行する納入通知書により指定期日の５月３１目まで納入する。
N62: 添付書類 | O62: 位置図 西根堰への排水経路記載
O63: 住宅平面図、浄化槽配置図、放流経路
O64: 浄化槽認定書等

Sheet 05水路
L2: 令和 年 月 日 | Y2: 令和 年 月 日
B3: 伊達西根堰土地改良区 | O3: 伊達西根堰土地改良区
B4: 理事長 佐久間 利 信 殿 | O4: 理事長 佐久間 利 信 殿
G5: 〒 | T5: 〒
E6: 申請者 | F6: 住 所 | R6: 申請者 | S6: 住 所
F8: 氏 名 | L8: 印 | S8: 氏 名 | Y8: 印
G9: 電話（ | H9: － － | K9: ） | T9: 電話（ | U9: － － | X9: ）
B11: 土地改良施設（水路）使用申請書 | O11: 土地改良施設（水路一時使用）使用申請書
B13: このたび下記により、貴土地改良区管理に係る施設（水路）を使用したいので、ご許可下されたく申請します。 | O13: このたび下記により、貴土地改良区管理に係る施設（水路一時使用）を使用したいので、ご許可下されたく申請します。
B16: 使用の場所 | O16: 使用の場所
B19: 使用目的 | O19: 使用目的
B22: 使用面積等 | O22: 使用面積等
B25: 使用期間 | D25: 令和 年 月 日 ～ 令和 年 月 日 | O25: 使用期間 | Q25: 令和 年 月 日 ～ 令和 年 月 日
B28: 使用ポンプ口径等 | O28: 使用ポンプ口径等
B31: 使用量（１日当たり） | O31: 使用量（１日当たり）
B33: その他必要事項 | D33: 使用終了後に速やかに実績報告書を提出します。また、施設を損傷した場合は、自己の負担により原形に復旧します。 | O33: その他必要事項 | Q33: 使用終了後に速やかに実績報告書を提出します。また、施設を損傷した場合は、自己の負担により原形に復旧します。
D34: １．位置図 | Q34: １．位置図
B35: 添付書類 | D35: １．工作物構造図（平面図、断面図、構造図） | O35: 添付書類 | Q35: １．工作物構造図（平面図、断面図、構造図）
B37: ※添付書類は必要に応じて提出すること。 | O37: ※添付書類は必要に応じて提出すること。
B40: 土地改良施設（水路）使用 実績報告書 | O40: 土地改良施設（水路一時）使用 実績報告書
B41: 番号 | C41: 使用月日 | D41: 使用内容 | G41: 使用量 | I41: 備 考 | O41: 番号 | P41: 使用月日 | Q41: 使用内容 | T41: 使用量 | V41: 備 考
H42: ｔ・ｍ3 | U42: ｔ・ｍ3
B64: 土地改良施設（水路）使用 実績報告書 | O64: 土地改良施設（水路一時）使用 実績報告書
B65: 番号 | C65: 使用月日 | D65: 使用内容 | G65: 使用量 | I65: 備 考 | O65: 番号 | P65: 使用月日 | Q65: 使用内容 | T65: 使用量 | V65: 備 考
H66: ｔ・ｍ3 | U66: ｔ・ｍ3
B84: 上記のとおり使用実績を報告いたします。 | O84: 上記のとおり使用実績を報告いたします。
E86: 申請者 | F86: 住 所 | R86: 申請者 | S86: 住 所
F88: 氏 名 | L88: 印 | S88: 氏 名 | Y88: 印
G89: 電話（ | H89: － － | K89: ） | T89: 電話（ | U89: － － | X89: ）

Sheet 06駐車場
O1: 三番坂下
C2: 駐車場一時使用申請書
B4: 伊達西根堰土地改良区
B5: 理事長 佐久間 利 信 殿
E7: 申請人 | F7: 住 所
F9: 氏 名 | K9: 印
F10: 電 話
B12: 貴土地改良区管理に係る福島市飯坂町湯野字三番坂下地内の駐車場を一時
B13: 使用したいので申請いたします。
J15: 令和 年 月 日
F17: 記
B19: １．使用場所 | C19: 福島市飯坂町湯野字三番坂下 (第 駐車場 № ～ 番)
B20: ２．使用期間 | C20: 令和 年 月 日 ～ 年 月 日 日間
B21: ３．使用料金 | C21: （ ）区画分 | G21: 円
B22: ４．使用目的 | C22: の駐車場として使用
B24: 尚、使用料金については別紙納付書により納入します。
C27: 駐車場一時使用申請書 | O27: 土地改良区北側（桑折町西段）
B29: 伊達西根堰土地改良区
B30: 理事長 佐久間 利 信 殿
E32: 申請人 | F32: 住 所
F34: 氏 名 | K34: 印
F35: 電話（ | G35: － － | J35: ）
B37: 貴土地改良区管理に係る伊達郡桑折町字西段地内の駐車場を一時使用したいので、
B38: 申請いたします。
J40: 令和 年 月 日
F42: 記
B44: １．使用場所 | C44: 伊達郡桑折町字西段１０番１４ (駐車場 № ～ 番)
B45: ２．使用期間 | C45: 令和 年 月 日 ～ 年 月 日 日間
B46: ３．使用料金 | C46: （ ）区画分 | G46: 円
B47: ４．使用目的 | C47: の駐車場として使用
C48: （普通乗用車以下又は２ｔトラック車以下）
B50: 尚、使用料金については別紙納付書により納入します。

Sheet 07同_建築
G2: 同 意 願
M4: 令和 年 月 日
B6: 伊達西根堰土地改良区
B7: 理事長 佐久間 利 信 殿
I9: 申請者 | K9: 住 所
K11: 氏 名 | Q11: 印
L12: 電話（
B14: この度、建築確認申請を提出するにあたり、伊達西根堰土地改良区管理に係る公共財産の施設使用について同意を必要といたしますので同意書の発行をお願いいたします。
I16: 記
B18: １．施設使用の場所
B20: ２．施設使用の目的
B22: ※ 添付書類 位置図（施設のある場所がわかるもの）、構造図（見取図で可）
F28: 同 意 願 書
B31: 令和 年 月 日申請のあった建築確認申請に伴う伊達西根堰土地改良区管理に係る公共財産の施設使用について、申請書のとおり引き続いて使用することに同意する。
I34: 記
B36: １．施設使用の場所
B38: ２．施設使用の目的
M40: 令和 年 月 日

Sheet 08変更
K2: 令和 年 月 日
B3: 伊達西根堰土地改良区
B4: 理事長 佐久間 利 信 殿
F5: 〒
D6: 申請者 | E6: 住 所
E8: 氏 名 | K8: 印
F9: 電話（ | G9: － － | J9: ）
B11: 土地改良施設使用変更（廃止）届
B13: 令和 年 月 日付け（ ）、土地改良施設の使用許可について変更（廃止）したいので、次のとおり届出いたします。
B16: 使用変更の理由
B17: （廃 止）
B19: 使用の場所
B22: 使用目的
B25: 工作物の種類、数量
B27: 使用期間 | C27: 自 令和 年 月 日
C28: 至 令和 年 月 日
B29: その他必要事項
B31: ※許可を受けいている申請書を添付してください。

Sheet 08変更1
K2: 令和 年 月 日
B3: 伊達西根堰土地改良区
B4: 理事長 佐久間 利 信 殿
F5: 〒
D6: 申請者 | E6: 住 所
E8: 氏 名 | K8: 印
F9: 電話（ | G9: － － | J9: ）
B11: 土地改良施設使用変更申請書
B13: 令和 年 月 日付け（ ）、土地改良施設の使用許可について変更（廃止）したいので、次のとおり申請いたします。
B15: 記
B16: １．申請者（施設使用者）
C17: 変更前 | D17: 住 所
D19: 氏 名
C21: 変更後 | D21: 住 所
D23: 氏 名
B26: ２．その他の使用条件
C27: 変更なし

Sheet 使用料1
B2: 別表第１（第１３条）
H4: 放 流 水 水 質 保 全 基 準
B6: １．し尿浄化槽からの放流水質基準
B8: 項 目 | K8: 単 位 | O8: 許 容 限 度
C10: 生物化学的酸素要求量 | K10: １ℓに付m/㎎ | O10: ２０PPM以下
B11: （ＢＯＤ）
B14: ２．排水処理沈澱槽からの放流水質基準
B16: 項 目 | K16: 単 位 | O16: 許 容 限 度
C18: 生物化学的酸素要求量 | K18: １ℓに付m/㎎ | O18: ２０PPM以下
C19: （ＢＯＤ）
C20: 浮遊物質量 | K20: 〃 | O20: 7０PPM以下
C21: （ ＳＳ ）
C22: 溶存酸素 | K22: 〃 | O22: ５PPM以上
C23: （ ＤＯ ）
C24: 水素イオン濃度 | K24: 水素指数 | O24: ６.０～７.５
C25: （ ＰＨ ）
C26: 総窒素 | K26: １ℓに付m/㎎ | O26: １PPM以下
C27: （ ＴＮ ）
BU31: 別表第２（第５条関係）
CA33: 使 用 料
BU35: 種 類 | BZ35: 単 位 | CC35: 使 用 料 | CG35: 許 容 限 度
BZ37: １ヶ所 | CF37: 円 | CH37: 上・下水道管（開渠を含む）
CC38: 7000 | CH38: 10m以下
BU39: 管 埋 設 | BZ39: 〃 | CH39: 〃
CC40: 8000 | CH40: 10～30m以下
BZ41: 〃 | CH41: 〃
CC42: 10000 | CH42: 30m以下
BU43: 橋 梁 | BZ43: 〃
CC44: 10000
BU45: 看板又は広告板 | BZ45: 〃
CC46: 10000
BU47: 仮 説 建 物 | BZ47: 〃 | CH47: 材料置場等を含む
CC48: 300
BU49: 電 柱 | BZ49: 本 | CH49: 電気通信法又は電気事業法の定
CH50: めによる
BU51: そ の 他 | CH51: その都度定める
CS56: 別表第３（第１２条関係）
CY58: 維 持 管 理 補 償 費
CS60: 種 類 | CW60: 放 流 量 | DB60: 単 位 | DD60: 金 額 | DH60: 付 記
CS61: 雑 廃 水 | CX61: 1.0㎥につき | DB61: 1㎥ | DD61: 7 | DG61: 円 | DI61: 年間廃水日数300日
CX62: 5.0㎥未満 | DB62: 1㎥ | DD62: 15 | DJ62: 〃
CS63: 工場廃水 | CX63: 5.0～20㎥未満 | DB63: 〃 | DD63: 18 | DJ63: 〃
CX64: 20～60㎥未満 | DB64: 〃 | DD64: 20 | DJ64: 〃
CX65: 60㎥以上 | DB65: 〃 | DD65: 25 | DJ65: 〃
CX66: 7人槽以下 | DB66: 1基 | DD66: 3300 | DJ66: 〃
CX67: 15人 〃 | DB67: 〃 | DD67: 6600 | DI67: 新規住宅の場合雑廃水
CX68: 20人 〃 | DB68: 〃 | DD68: 8800 | DI68: を加算
CS69: し尿浄化水 | CX69: 30人 〃 | DB69: 〃 | DI69: 7円×300日＝2,100円
CX70: 50人 〃 | DB70: 〃
CX71: 75人 〃 | DB71: 〃
CX72: 100人 〃 | DB72: 〃
CX73: 100人槽以上 | DB73: 〃
CS76: 別表第４（第３条関係）
CY78: 手 数 料
CS80: 種 類 | CZ80: 手 数 料 | DD80: 備 考
CS81: 施設使用に関するもの | CZ81: 3000 | DC81: 円 | DD81: 但し同一申請による場合の手数料は、
CS82: 排水放流に関するもの | CZ82: 7000 | DC82: 円 | DD82: 7,000円とする。

Sheet 施設使用料
B2: 伊達西根堰土地改良区土地改良施設使用規程
B3: 別表第２（第５条関係）の運用基準 | L3: 単位：円
C4: 種 類 | F4: 単位 | G4: 使用料 | H4: 申請手数料 | I4: 付 記
C5: 水道管横断 | F5: １ヶ所 | G5: 7000 | H5: 3000 | I5: 10m以下
C6: 下水道 | F6: １ヶ所 | G6: 7000 | H6: 3000 | I6: 10m以下
C7: 排水管横断 | F7: １ヶ所 | G7: 7000 | H7: 3000 | I7: 10m以下
C8: 雨水排水管 | F8: １ヶ所 | G8: 7000 | H8: 3000 | I8: VP150㍉／10m以下
C9: 橋梁 | F9: １ヶ所 | G9: 10000 | H9: 3000
C10: 仮設橋梁 | D10: （仮橋） | F10: ㎡ | G10: 300 | H10: 3000 | I10: 鉄板橋など
C11: 橋梁掛け替え | D11: （改修） | F11: １ヶ所 | G11: － | H11: 3000 | I11: 木橋をコンクリート橋に掛け替え
C12: 橋梁拡幅 | D12: （改修） | F12: １ヶ所 | G12: － | H12: 3000 | I12: 既存の橋を拡幅
C13: 安全柵 | F13: １ヶ所 | G13: － | H13: 3000 | I13: 堰と橋梁部分のフェンス
C14: カーブミラー | F14: １基 | G14: 7000 | H14: 3000
C15: 土留 | F15: １ヶ所 | G15: 10000 | H15: 3000 | I15: 法定外公共物内は市・町協議
C16: ※伊達西根堰土地改良区土地改良施設使用規程第６条の規程により公共は免除する。
B18: 別表第２（第５条関係）に定める、その他の使用料 | L18: 単位：円
C19: 種 類 | F19: 単位 | G19: 使用料 | H19: 付 記
C20: 水路使用(１） | F20: 年額 | G20: 2000 | H20: 貯水槽、庭木散布、洗い物、鶏舎用（1,000㎡）、他
C21: 水路使用(２） | F21: 年額 | G21: 3000 | H21: 池等
C22: 水路一時使用 | H22: １回500円(50ｍ3使用含む）、50ｍ3以上使用は、10ｍ3毎に200円加算（使用の都度） 使用料(50ｍ3以上)＝500＋(V-50)×200÷10
C23: 水路一時使用 | H23: １回500円、50ｍ3以上は10ｍ3当たり100円加算（使用の都度）
C24: 水路一時使用 | H24: １回1,00円、100ｍ3以上は10ｍ3当たり100円加算（使用の都度）
C26: 平成２７年度第６回理事会承認（平成２８年３月１５日開催）
AZ28: 水路一時使用 料金一覧表 | BC28: ※使用量は、合計の小数点以下切り捨て
AZ29: 使用量(ｍ3) | BB29: 料金(円) | BC29: 備考 | BD29: 使用量(ｍ3) | BF29: 料金(円) | BG29: 備考
AZ30: 50 | BA30: ｍ3以下 | BB30: 500 | BD30: =AZ70+10 -> 460 | BE30: ｍ3以下 | BF30: =BB70+200 -> 8700
AZ31: =AZ30+10 -> 60 | BB31: =BB30+200 -> 700 | BD31: =BD30+10 -> 470 | BF31: =BF30+200 -> 8900
AZ32: =AZ31+10 -> 70 | BB32: =BB31+200 -> 900 | BD32: =BD31+10 -> 480 | BF32: =BF31+200 -> 9100
AZ33: 80 | BB33: 1100 | BD33: 490 | BF33: 9300
AZ34: 90 | BB34: 1300 | BD34: 500 | BF34: 9500
AZ35: 100 | BB35: 1500 | BD35: 510 | BF35: 9700
AZ36: 110 | BB36: 1700 | BD36: 520 | BF36: 9900
AZ37: 120 | BB37: 1900 | BD37: 530 | BF37: 10100
AZ38: 130 | BB38: 2100 | BD38: 540 | BF38: 10300
AZ39: 140 | BB39: 2300 | BD39: 550 | BF39: 10500
AZ40: 150 | BB40: 2500 | BD40: 560 | BF40: 10700
AZ41: 160 | BB41: 2700 | BD41: 570 | BF41: 10900
AZ42: 170 | BB42: 2900 | BD42: 580 | BF42: 11100
AZ43: 180 | BB43: 3100 | BD43: 590 | BF43: 11300
AZ44: 190 | BB44: 3300 | BD44: 600 | BF44: 11500
AZ45: 200 | BB45: 3500 | BD45: 610 | BF45: 11700
AZ46: 210 | BB46: 3700 | BD46: 620 | BF46: 11900
AZ47: 220 | BB47: 3900 | BD47: 630 | BF47: 12100
AZ48: 230 | BB48: 4100 | BD48: 640 | BF48: 12300
AZ49: 240 | BB49: 4300 | BD49: 650 | BF49: 12500
AZ50: 250 | BB50: 4500 | BD50: 660 | BF50: 12700
AZ51: 260 | BB51: 4700 | BD51: 670 | BF51: 12900
AZ52: 270 | BB52: 4900 | BD52: 680 | BF52: 13100
AZ53: 280 | BB53: 5100 | BD53: 690 | BF53: 13300
AZ54: 290 | BB54: 5300 | BD54: 700 | BF54: 13500
AZ55: 300 | BB55: 5500 | BD55: 710 | BF55: 13700
AZ56: 310 | BB56: 5700 | BD56: 720 | BF56: 13900
AZ57: 320 | BB57: 5900 | BD57: 730 | BF57: 14100
AZ58: 330 | BB58: 6100 | BD58: 740 | BF58: 14300
AZ59: 340 | BB59: 6300 | BD59: 750 | BF59: 14500
AZ60: 350 | BB60: 6500 | BD60: 760 | BF60: 14700
AZ61: 360 | BB61: 6700 | BD61: 770 | BF61: 14900
AZ62: 370 | BB62: 6900 | BD62: 780 | BF62: 15100
AZ63: 380 | BB63: 7100 | BD63: 790 | BF63: 15300
AZ64: 390 | BB64: 7300 | BD64: 800 | BF64: 15500
AZ65: 400 | BB65: 7500 | BD65: 810 | BF65: 15700
AZ66: 410 | BB66: 7700 | BD66: 820 | BF66: 15900
AZ67: 420 | BB67: 7900 | BD67: 830 | BF67: 16100
AZ68: 430 | BB68: 8100 | BD68: 840 | BF68: 16300
AZ69: =AZ68+10 -> 440 | BB69: =BB68+200 -> 8300 | BD69: =BD68+10 -> 850 | BF69: =BF68+200 -> 16500
AZ70: 450 | BB70: 8500 | BD70: 860 | BF70: 16700
AZ72: 水路一時使用 料金一覧表 | BC72: ※使用量は、合計の小数点以下切り捨て
AZ73: 使用量(ｍ3) | BB73: 料金(円) | BC73: 備考 | BD73: 使用量(ｍ3) | BF73: 料金(円) | BG73: 備考
AZ74: =BD70+10 -> 870 | BA74: ｍ3以下 | BB74: =BF70+200 -> 16900 | BD74: =AZ114+10 -> 1280 | BE74: ｍ3以下 | BF74: =BB114+200 -> 25100
AZ75: =AZ74+10 -> 880 | BB75: =BB74+200 -> 17100 | BD75: =BD74+10 -> 1290 | BF75: =BF74+200 -> 25300
AZ76: =AZ75+10 -> 890 | BB76: =BB75+200 -> 17300 | BD76: =BD75+10 -> 1300 | BF76: =BF75+200 -> 25500
AZ77: 900 | BB77: 17500 | BD77: 1310 | BF77: 25700
AZ78: 910 | BB78: 17700 | BD78: 1320 | BF78: 25900
AZ79: 920 | BB79: 17900 | BD79: 1330 | BF79: 26100
AZ80: 930 | BB80: 18100 | BD80: 1340 | BF80: 26300
AZ81: 940 | BB81: 18300 | BD81: 1350 | BF81: 26500
AZ82: 950 | BB82: 18500 | BD82: 1360 | BF82: 26700
AZ83: 960 | BB83: 18700 | BD83: 1370 | BF83: 26900
AZ84: 970 | BB84: 18900 | BD84: 1380 | BF84: 27100
AZ85: 980 | BB85: 19100 | BD85: 1390 | BF85: 27300
AZ86: 990 | BB86: 19300 | BD86: 1400 | BF86: 27500
AZ87: 1000 | BB87: 19500 | BD87: 1410 | BF87: 27700
AZ88: 1010 | BB88: 19700 | BD88: 1420 | BF88: 27900
AZ89: 1020 | BB89: 19900 | BD89: 1430 | BF89: 28100
AZ90: 1030 | BB90: 20100 | BD90: 1440 | BF90: 28300
AZ91: 1040 | BB91: 20300 | BD91: 1450 | BF91: 28500
AZ92: 1050 | BB92: 20500 | BD92: 1460 | BF92: 28700
AZ93: 1060 | BB93: 20700 | BD93: 1470 | BF93: 28900
AZ94: 1070 | BB94: 20900 | BD94: 1480 | BF94: 29100
AZ95: 1080 | BB95: 21100 | BD95: 1490 | BF95: 29300
AZ96: 1090 | BB96: 21300 | BD96: 1500 | BF96: 29500
AZ97: 1100 | BB97: 21500 | BD97: 1510 | BF97: 29700
AZ98: 1110 | BB98: 21700 | BD98: 1520 | BF98: 29900
AZ99: 1120 | BB99: 21900 | BD99: 1530 | BF99: 30100
AZ100: 1130 | BB100: 22100 | BD100: 1540 | BF100: 30300
AZ101: 1140 | BB101: 22300 | BD101: 1550 | BF101: 30500
AZ102: 1150 | BB102: 22500 | BD102: 1560 | BF102: 30700
AZ103: 1160 | BB103: 22700 | BD103: 1570 | BF103: 30900
AZ104: 1170 | BB104: 22900 | BD104: 1580 | BF104: 31100
AZ105: 1180 | BB105: 23100 | BD105: 1590 | BF105: 31300
AZ106: 1190 | BB106: 23300 | BD106: 1600 | BF106: 31500
AZ107: 1200 | BB107: 23500 | BD107: 1610 | BF107: 31700
AZ108: 1210 | BB108: 23700 | BD108: 1620 | BF108: 31900
AZ109: 1220 | BB109: 23900 | BD109: 1630 | BF109: 32100
AZ110: 1230 | BB110: 24100 | BD110: 1640 | BF110: 32300
AZ111: 1240 | BB111: 24300 | BD111: 1650 | BF111: 32500
AZ112: 1250 | BB112: 24500 | BD112: 1660 | BF112: 32700
AZ113: 1260 | BB113: 24700 | BD113: 1670 | BF113: 32900
AZ114: 1270 | BB114: 24900 | BD114: 1680 | BF114: 33100
AZ116: 水路一時使用 料金一覧表 | BC116: ※使用量は、合計の小数点以下切り捨て
AZ117: 使用量(ｍ3) | BB117: 料金(円) | BC117: 備考 | BD117: 使用量(ｍ3) | BF117: 料金(円) | BG117: 備考
AZ118: =BD114+10 -> 1690 | BA118: ｍ3以下 | BB118: =BF114+200 -> 33300 | BD118: =AZ158+10 -> 2100 | BE118: ｍ3以下 | BF118: =BB158+200 -> 41500
AZ119: =AZ118+10 -> 1700 | BB119: =BB118+200 -> 33500 | BD119: =BD118+10 -> 2110 | BF119: =BF118+200 -> 41700
AZ120: =AZ119+10 -> 1710 | BB120: =BB119+200 -> 33700 | BD120: =BD119+10 -> 2120 | BF120: =BF119+200 -> 41900
AZ121: 1720 | BB121: 33900 | BD121: 2130 | BF121: 42100
AZ122: 1730 | BB122: 34100 | BD122: 2140 | BF122: 42300
AZ123: 1740 | BB123: 34300 | BD123: 2150 | BF123: 42500
AZ124: 1750 | BB124: 34500 | BD124: 2160 | BF124: 42700
AZ125: 1760 | BB125: 34700 | BD125: 2170 | BF125: 42900
AZ126: 1770 | BB126: 34900 | BD126: 2180 | BF126: 43100
AZ127: 1780 | BB127: 35100 | BD127: 2190 | BF127: 43300
AZ128: 1790 | BB128: 35300 | BD128: 2200 | BF128: 43500
AZ129: 1800 | BB129: 35500 | BD129: 2210 | BF129: 43700
AZ130: 1810 | BB130: 35700 | BD130: 2220 | BF130: 43900
AZ131: 1820 | BB131: 35900 | BD131: 2230 | BF131: 44100
AZ132: 1830 | BB132: 36100 | BD132: 2240 | BF132: 44300
AZ133: 1840 | BB133: 36300 | BD133: 2250 | BF133: 44500
AZ134: 1850 | BB134: 36500 | BD134: 2260 | BF134: 44700
AZ135: 1860 | BB135: 36700 | BD135: 2270 | BF135: 44900
AZ136: 1870 | BB136: 36900 | BD136: 2280 | BF136: 45100
AZ137: 1880 | BB137: 37100 | BD137: 2290 | BF137: 45300
AZ138: 1890 | BB138: 37300 | BD138: 2300 | BF138: 45500
AZ139: 1900 | BB139: 37500 | BD139: 2310 | BF139: 45700
AZ140: 1910 | BB140: 37700 | BD140: 2320 | BF140: 45900
AZ141: 1920 | BB141: 37900 | BD141: 2330 | BF141: 46100
AZ142: 1930 | BB142: 38100 | BD142: 2340 | BF142: 46300
AZ143: 1940 | BB143: 38300 | BD143: 2350 | BF143: 46500
AZ144: 1950 | BB144: 38500 | BD144: 2360 | BF144: 46700
AZ145: 1960 | BB145: 38700 | BD145: 2370 | BF145: 46900
AZ146: 1970 | BB146: 38900 | BD146: 2380 | BF146: 47100
AZ147: 1980 | BB147: 39100 | BD147: 2390 | BF147: 47300
AZ148: 1990 | BB148: 39300 | BD148: 2400 | BF148: 47500
AZ149: 2000 | BB149: 39500 | BD149: 2410 | BF149: 47700
AZ150: 2010 | BB150: 39700 | BD150: 2420 | BF150: 47900
AZ151: 2020 | BB151: 39900 | BD151: 2430 | BF151: 48100
AZ152: 2030 | BB152: 40100 | BD152: 2440 | BF152: 48300
AZ153: 2040 | BB153: 40300 | BD153: 2450 | BF153: 48500
AZ154: 2050 | BB154: 40500 | BD154: 2460 | BF154: 48700
AZ155: 2060 | BB155: 40700 | BD155: 2470 | BF155: 48900
AZ156: 2070 | BB156: 40900 | BD156: 2480 | BF156: 49100
AZ157: 2080 | BB157: 41100 | BD157: 2490 | BF157: 49300
AZ158: 2090 | BB158: 41300 | BD158: 2500 | BF158: 49500 | BI158: =(BD158-50)*20+500 -> 49500

Sheet 規程
B1: 伊達西根堰土地改良区土地改良施設使用規程（抜粋）
B2: （趣旨）
B3: 第１条 伊達西根堰土地改良区が維持管理する土地改良施設を他の目的に使用しようとする 者は、土地改良施設管理規程に定めるもののほかは、この規程に定めるところによる。
B4: （申請書の提出及び使用許可）
B5: 第２条 この施設を他の目的に使用しようとする者は、第２項の場合を除き様式第１号に定める申請書又は、申請者において作成した同内容の協議書等を理事長に提出し、許可を受けなければならない。
B6: ２ 使用目的が駐車場及び宅地等の場合には、別に定める契約書様式第６号又は様式第７号によるものとする。
B7: （手数料）
B8: 第３条 前条第１項により許可を受ける際は、別表第４に定める手数料を納付しなければならない。ただし、第６条及び第１９条により手数料を免除することができる。
B9: （使用期間）
B10: 第４条 施設の使用期間は、１年以内とし、使用期間満了の日前３０日までに使用者より何事の申出がないときは更に１年延長するものとする。ただし１年以内とすることが実情にそわないと理事長が認めるときは、５年以内とすることができる。以後も同様とする。ただし、第１６条（許可の取消し又は停止）の規程に該当するときは延長することはできない。
B11: （使用料の額）
B12: 第５条 使用期間中は別表第２に定める金額を使用料として納付しなければならない。
B13: （使用料の免除）
B14: 第６条 理事長は、施設の使用又は収益の許可を受けたものが当該施設を公用、又は公 共事業に供する場合において使用料を徴収することが適当でないと認めたときは、使 用料の全額又は一部を免除することができる。ただし公用、又は公共事業以外の場合において理事長が認めるときは同様とすることが出来るものとする。
B15: （使用料の徴収方法）
B16: 第７条使用料は、使用許可後直ちに納入告知書により納入するものとする。
B17: （使用者の遵守事項）
B18: 第８条 施設の使用許可を受けた者は、許可条件を遵守するほか、次の事項を履行しなければならない。
B19: (1) 工事着工、竣功の場合又は天災等により現場に変更を生じたときは速やかに届け出て指示及び検査を受けなければならない。
B20: (2) 使用を廃止した場合は、速やかに届け出て原形に復旧し検査を受けなければならない。
B21: (3) 故意又は過失により維持管理事業に支障を与え又は施設を損傷したときは、理事長の指示に従い損害を補償し又は原形に復旧しなければならない。
B22: （不許可の条件）
B23: 第９条 次の各号に該当するものは、許可することができない。
B24: (1) 用水路並びに分水口等附帯構造物に危害を及ぼす恐れのあるもの。
B25: (2) かんがい用水に支障の恐れのあるもの。
B26: （使用停止及び許可の取消し）
B27: 第１０条 次の各号に該当する場合は、使用停止又は許可の取り消しをすることができる。 この場合使用者の受ける損害については、この土地改良区はその責を負わない。
B28: (1) 第８条の規定に違反したとき。
B29: (2) 使用料の納入を怠ったとき。
B30: ～以下省略～

Sheet 規程(浄化槽)
B1: 伊達西根堰土地改良区土地改良施設使用規程（抜粋）
B2: （趣旨）
B3: 第１条 伊達西根堰土地改良区が維持管理する土地改良施設を他の目的に使用しようとする 者は、土地改良施設管理規程に定めるもののほかは、この規程に定めるところによる。
B4: （申請書の提出及び使用許可）
B5: 第２条 この施設を他の目的に使用しようとする者は、第２項の場合を除き様式第１号に定める申請書又は、申請者において作成した同内容の協議書等を理事長に提出し、許可を受けなければならない。
B6: ２ 使用目的が駐車場及び宅地等の場合には、別に定める契約書様式第６号又は様式第７号によるものとする。
B7: （手数料）
B8: 第３条 前条第１項により許可を受ける際は、別表第４に定める手数料を納付しなければならない。ただし、第６条及び第１９条により手数料を免除することができる。
B9: （使用期間）
B10: 第４条 施設の使用期間は、１年以内とし、使用期間満了の日前３０日までに使用者より何事の申出がないときは更に１年延長するものとする。ただし１年以内とすることが実情にそわないと理事長が認めるときは、５年以内とすることができる。以後も同様とする。ただし、第１６条（許可の取消し又は停止）の規程に該当するときは延長することはできない。
B11: （使用料の額）
B12: 第５条 使用期間中は別表第２に定める金額を使用料として納付しなければならない。
B13: （使用料の免除） | E13: ～省略～
B14: （使用料の徴収方法）
B15: 第７条使用料は、使用許可後直ちに納入告知書により納入するものとする。
B16: （使用者の遵守事項）
B17: 第８条 施設の使用許可を受けた者は、許可条件を遵守するほか、次の事項を履行しなければならない。
B18: (1) 工事着工、竣功の場合又は天災等により現場に変更を生じたときは速やかに届け出て指示及び検査を受けなければならない。
B19: (2) 使用を廃止した場合は、速やかに届け出て原形に復旧し検査を受けなければならない。
B20: (3) 故意又は過失により維持管理事業に支障を与え又は施設を損傷したときは、理事長の指示に従い損害を補償し又は原形に復旧しなければならない。
B21: （不許可の条件）
B22: 第９条 次の各号に該当するものは、許可することができない。
B23: (1) 用水路並びに分水口等附帯構造物に危害を及ぼす恐れのあるもの。
B24: (2) かんがい用水に支障の恐れのあるもの。
B25: （使用停止及び許可の取消し）
B26: 第１０条 次の各号に該当する場合は、使用停止又は許可の取り消しをすることができる。 この場合使用者の受ける損害については、この土地改良区はその責を負わない。
B27: (1) 第８条の規定に違反したとき。
B28: (2) 使用料の納入を怠ったとき。
B29: （汚水放流の防止）
B30: 第１１条 この土地改良区の管理する用水路には、汚水を放流してはならない。
B31: （排水放流による使用）
B32: 第１２条 住宅の生活排水、工場排水等にしてやむを得ない事由により、用水路に放流しなければならない場合は、排水水質基準を厳守することを条件に様式第１号に定める申請書を理事長に提出し、様式第３号に定める許可書交付後放流することができる。
B33: ～以下省略～

Sheet 同_開発
J2: 29西根許可600号
J3: 平成29年12月12日
B5: 申請人
H7: 伊達西根堰土地改良区
H8: 理事長 佐久間 利 信
E10: 同 意 書
B12: 平成29年12月12日付け開発許可申請に伴う西根堰への排水同意については、土地改良区施設管理規程に定めてある条項を遵守する外、下記条項を付して同意する。
G15: 記
B17: １．雨水排水については、土地改良施設管理規程を遵守履行を条件に同意する。
B19: ２．浄化槽等生活雑排水については、別途協議する。

Sheet 同_排水
J2: 29西根許可600号
J3: 平成29年12月12日
B5: 申請人
H7: 伊達西根堰土地改良区
H8: 理事長 佐久間 利 信
E10: 同 意 書
B12: 平成29年12月12日付け申請に伴う土地改良施設（西根堰）への排水同意については、土地改良区施設管理規程に定めてある条項を遵守する外、下記条項を付して同意する。
G15: 記
B17: １．雨水排水については、土地改良施設管理規程を遵守履行を条件に同意する。

Sheet 許_排水
J2: 29西根許可600号
J3: 平成29年12月12日
B5: 申請人
H7: 伊達西根堰土地改良区
H8: 理事長 佐久間 利 信
E10: 許 可 書
B12: 平成29年12月12日付け申請に伴う土地改良施設（排水放流）申請については、土地改良区施設管理規程に定めてある条項を遵守する外、下記条項を付して同意する。
G15: 記
B17: １．排水が農業用水路にはいる場合は、下流受益者の同意をとること。
B18: ２．浄化槽及び雑排水を放流する場合は、必ず溜桝を設置し建物の規模や使用目的に
B19: 応じた大きさを決め、管理は常に良好にしておくこと。
B20: ３．許可外の排水（油類、農薬）等は絶対にしないこと。
B21: ４．土地改良区施設使用規程 第３条による手数料を納付すること。
B22: （排水放流に関するもの ７，０００円)
B23: ５．土地改良区施設使用規程 第１２条による維持管理補償費。（別途請求）
E24: 申請 新規住宅 ５人槽
E25: し尿浄化槽（７人槽以下) | I25: ３，３００円
E26: 雑排水 | I26: ２，１００円

Sheet 許_用水
J2: 29西根許可600号
J3: 平成29年12月12日
B5: 申請人
H7: 伊達西根堰土地改良区
H8: 理事長 佐久間 利 信
E10: 許 可 書
B12: 平成29年12月12日付け用水路使用申請については、土地改良区施設管理規程に定めてある条項を遵守する外、下記条項を付して同意する。
G15: 記
B17: １．用水路使用において、施設の良好な維持管理に努め、また、申請内容に変更が
B18: ある場合は事前に届けて下さい。
B19: ２．本施設は、農業用用水路のため、天候により使用の中止及び維持管理のため、
B20: 通水を中止する場合があります。
B21: ３．使用終了後に速やかに実績報告書を提出して下さい。なお、別表第２（第５条
B22: 関係）に定める、その他の使用料により使用料を納付して下さい。

Sheet 許_施設
J2: 29西根許可600号 | O2: 公共団体（減免）
J3: 2017-12-12
B5: 申請人
H7: 伊達西根堰土地改良区
H8: 理事長 佐久間 利 信
E10: 許 可 書
B12: 平成２８年６月３日付（２８ 上下第１７６号）土地改良施設使用申請について、土地改良施設使用に関する規程に定めてある条項を遵守する外、下記条項を付して許可します。
G15: 記
B17: １．施設の良好な維持管理に努めること。また、施設の使用目的、形状を変更する
B18: 場合は事前に届け出ること。
B19: ２．土地改良施設は経年変化により老朽化も進んでいるため施工により破損等が発
B20: 生しないよう注意すること。なお、施工により破損した場合、申請者の責任に
B21: より補修を行うこと。
B22: ３．施設の補修及び改修等において工作物が工事の支障となる場合は、申請人の責
B23: 任において仮設等の対応を行うこと。
B24: ４．伊達西根堰土地改良区土地改良施設使用規程第３条（別表第４）による手数料、
B25: 同第５条（別表２）による使用料は、同第６条の規程により免除する。
B28: 伊達西根堰土地改良区土地改良施設使用規程（抜粋）
B29: （趣旨）
B30: 第１条 伊達西根堰土地改良区が維持管理する土地改良施設を他の目的に使用しようとする 者は、土地改良施設管理規程に定めるもののほかは、この規程に定めるところによる。
B31: （申請書の提出及び使用許可）
B32: 第２条 この施設を他の目的に使用しようとする者は、第２項の場合を除き様式第１号に定める申請書又は、申請者において作成した同内容の協議書等を理事長に提出し、許可を受けなければならない。
B33: ２ 使用目的が駐車場及び宅地等の場合には、別に定める契約書様式第６号又は様式第７号によるものとする。
B34: （手数料）
B35: 第３条 前条第１項により許可を受ける際は、別表第４に定める手数料を納付しなければならない。ただし、第６条及び第１９条により手数料を免除することができる。
B36: （使用期間）
B37: 第４条 施設の使用期間は、１年以内とし、使用期間満了の日前３０日までに使用者より何事の申出がないときは更に１年延長するものとする。ただし１年以内とすることが実情にそわないと理事長が認めるときは、５年以内とすることができる。以後も同様とする。ただし、第１６条（許可の取消し又は停止）の規程に該当するときは延長することはできない。
B38: （使用料の額）
B39: 第５条 使用期間中は別表第２に定める金額を使用料として納付しなければならない。
B40: （使用料の免除）
B41: 第６条 理事長は、施設の使用又は収益の許可を受けたものが当該施設を公用、又は公 共事業に供する場合において使用料を徴収することが適当でないと認めたときは、使 用料の全額又は一部を免除することができる。ただし公用、又は公共事業以外の場合において理事長が認めるときは同様とすることが出来るものとする。
B42: （使用料の徴収方法）
B43: 第７条使用料は、使用許可後直ちに納入告知書により納入するものとする。
B44: （使用者の遵守事項）
B45: 第８条 施設の使用許可を受けた者は、許可条件を遵守するほか、次の事項を履行しなければならない。
B46: (1) 工事着工、竣功の場合又は天災等により現場に変更を生じたときは速やかに届け出て指示及び検査を受けなければならない。
B47: (2) 使用を廃止した場合は、速やかに届け出て原形に復旧し検査を受けなければならない。
B48: (3) 故意又は過失により維持管理事業に支障を与え又は施設を損傷したときは、理事長の指示に従い損害を補償し又は原形に復旧しなければならない。
B49: （不許可の条件）
B50: 第９条 次の各号に該当するものは、許可することができない。
B51: (1) 用水路並びに分水口等附帯構造物に危害を及ぼす恐れのあるもの。
B52: (2) かんがい用水に支障の恐れのあるもの。
B53: （使用停止及び許可の取消し）
B54: 第１０条 次の各号に該当する場合は、使用停止又は許可の取り消しをすることができる。 この場合使用者の受ける損害については、この土地改良区はその責を負わない。
B55: (1) 第８条の規定に違反したとき。
B56: (2) 使用料の納入を怠ったとき。
B57: ～以下省略～

Sheet 許_施設(橋梁)
J2: 29西根許可600号 | O2: 橋梁
J3: 2017-12-12
B5: 申請人
H7: 伊達西根堰土地改良区
H8: 理事長 佐久間 利 信
E10: 許 可 書
B12: 平成２８年６月３日付（２８ 上下第１７６号）土地改良施設使用申請について、土地改良施設使用に関する規程に定めてある条項を遵守する外、下記条項を付して許可します。
G15: 記
B17: １．施設の良好な維持管理に努めること。また、施設の使用目的、形状を変更する
B18: 場合は事前に届け出ること。
B19: ２．土地改良施設は経年変化により老朽化も進んでいるため施工により破損等が発
B20: 生しないよう注意すること。なお、施工により破損した場合、申請者の責任に
B21: より補修を行うこと。
B22: ３．施設の補修及び改修等において工作物が工事の支障となる場合は、申請人の責
B23: 任において仮設等の対応を行うこと。
B24: ４．土地改良区土地改良施設使用規程 第３条による手数料を納付すること。
B25: （施設使用に関するもの ３，０００円）
B26: ５．土地改良区土地改良施設使用規程 第５条による使用料を納付すること。
B27: （橋 梁 １０，０００円）
B28: ６．施設設置においては、該当する市町に公共用財産使用等許可等の必要な申請
B29: 及び許可を受けること。
B32: 伊達西根堰土地改良区土地改良施設使用規程（抜粋）
B33: （趣旨）
B34: 第１条 伊達西根堰土地改良区が維持管理する土地改良施設を他の目的に使用しようとする 者は、土地改良施設管理規程に定めるもののほかは、この規程に定めるところによる。
B35: （申請書の提出及び使用許可）
B36: 第２条 この施設を他の目的に使用しようとする者は、第２項の場合を除き様式第１号に定める申請書又は、申請者において作成した同内容の協議書等を理事長に提出し、許可を受けなければならない。
B37: ２ 使用目的が駐車場及び宅地等の場合には、別に定める契約書様式第６号又は様式第７号によるものとする。
B38: （手数料）
B39: 第３条 前条第１項により許可を受ける際は、別表第４に定める手数料を納付しなければならない。ただし、第６条及び第１９条により手数料を免除することができる。
B40: （使用期間）
B41: 第４条 施設の使用期間は、１年以内とし、使用期間満了の日前３０日までに使用者より何事の申出がないときは更に１年延長するものとする。ただし１年以内とすることが実情にそわないと理事長が認めるときは、５年以内とすることができる。以後も同様とする。ただし、第１６条（許可の取消し又は停止）の規程に該当するときは延長することはできない。
B42: （使用料の額）
B43: 第５条 使用期間中は別表第２に定める金額を使用料として納付しなければならない。
B44: （使用料の免除）
B45: 第６条 理事長は、施設の使用又は収益の許可を受けたものが当該施設を公用、又は公 共事業に供する場合において使用料を徴収することが適当でないと認めたときは、使 用料の全額又は一部を免除することができる。ただし公用、又は公共事業以外の場合において理事長が認めるときは同様とすることが出来るものとする。
B46: （使用料の徴収方法）
B47: 第７条使用料は、使用許可後直ちに納入告知書により納入するものとする。
B48: （使用者の遵守事項）
B49: 第８条 施設の使用許可を受けた者は、許可条件を遵守するほか、次の事項を履行しなければならない。
B50: (1) 工事着工、竣功の場合又は天災等により現場に変更を生じたときは速やかに届け出て指示及び検査を受けなければならない。
B51: (2) 使用を廃止した場合は、速やかに届け出て原形に復旧し検査を受けなければならない。
B52: (3) 故意又は過失により維持管理事業に支障を与え又は施設を損傷したときは、理事長の指示に従い損害を補償し又は原形に復旧しなければならない。
B53: （不許可の条件）
B54: 第９条 次の各号に該当するものは、許可することができない。
B55: (1) 用水路並びに分水口等附帯構造物に危害を及ぼす恐れのあるもの。
B56: (2) かんがい用水に支障の恐れのあるもの。
B57: （使用停止及び許可の取消し）
B58: 第１０条 次の各号に該当する場合は、使用停止又は許可の取り消しをすることができる。 この場合使用者の受ける損害については、この土地改良区はその責を負わない。
B59: (1) 第８条の規定に違反したとき。
B60: (2) 使用料の納入を怠ったとき。
B61: ～以下省略～

Sheet 許_施設(減免)
J2: 29西根許可600号 | O2: 公共団体（減免）
J3: 2017-12-12
B5: 申請人
H7: 伊達西根堰土地改良区
H8: 理事長 佐久間 利 信
E10: 許 可 書
B12: 平成２８年６月３日付（２８ 上下第１７６号）土地改良施設使用申請について、土地改良施設使用に関する規程に定めてある条項を遵守する外、下記条項を付して許可します。
G15: 記
B17: １．施設の良好な維持管理に努めること。また、施設の使用目的、形状を変更する
B18: 場合は事前に届け出ること。
B19: ２．土地改良施設は経年変化により老朽化も進んでいるため施工により破損等が発
B20: 生しないよう注意すること。なお、施工により破損した場合、申請者の責任に
B21: より補修を行うこと。
B22: ３．施設の補修及び改修等において工作物が工事の支障となる場合は、申請人の責
B23: 任において仮設等の対応を行うこと。
B24: ４．伊達西根堰土地改良区土地改良施設使用規程第３条（別表第４）による手数料、
B25: 同第５条（別表２）による使用料は、同第６条の規程により免除する。
B28: 伊達西根堰土地改良区土地改良施設使用規程（抜粋）
B29: （趣旨）
B30: 第１条 伊達西根堰土地改良区が維持管理する土地改良施設を他の目的に使用しようとする 者は、土地改良施設管理規程に定めるもののほかは、この規程に定めるところによる。
B31: （申請書の提出及び使用許可）
B32: 第２条 この施設を他の目的に使用しようとする者は、第２項の場合を除き様式第１号に定める申請書又は、申請者において作成した同内容の協議書等を理事長に提出し、許可を受けなければならない。
B33: ２ 使用目的が駐車場及び宅地等の場合には、別に定める契約書様式第６号又は様式第７号によるものとする。
B34: （手数料）
B35: 第３条 前条第１項により許可を受ける際は、別表第４に定める手数料を納付しなければならない。ただし、第６条及び第１９条により手数料を免除することができる。
B36: （使用期間）
B37: 第４条 施設の使用期間は、１年以内とし、使用期間満了の日前３０日までに使用者より何事の申出がないときは更に１年延長するものとする。ただし１年以内とすることが実情にそわないと理事長が認めるときは、５年以内とすることができる。以後も同様とする。ただし、第１６条（許可の取消し又は停止）の規程に該当するときは延長することはできない。
B38: （使用料の額）
B39: 第５条 使用期間中は別表第２に定める金額を使用料として納付しなければならない。
B40: （使用料の免除）
B41: 第６条 理事長は、施設の使用又は収益の許可を受けたものが当該施設を公用、又は公 共事業に供する場合において使用料を徴収することが適当でないと認めたときは、使 用料の全額又は一部を免除することができる。ただし公用、又は公共事業以外の場合において理事長が認めるときは同様とすることが出来るものとする。
B42: （使用料の徴収方法）
B43: 第７条使用料は、使用許可後直ちに納入告知書により納入するものとする。
B44: （使用者の遵守事項）
B45: 第８条 施設の使用許可を受けた者は、許可条件を遵守するほか、次の事項を履行しなければならない。
B46: (1) 工事着工、竣功の場合又は天災等により現場に変更を生じたときは速やかに届け出て指示及び検査を受けなければならない。
B47: (2) 使用を廃止した場合は、速やかに届け出て原形に復旧し検査を受けなければならない。
B48: (3) 故意又は過失により維持管理事業に支障を与え又は施設を損傷したときは、理事長の指示に従い損害を補償し又は原形に復旧しなければならない。
B49: （不許可の条件）
B50: 第９条 次の各号に該当するものは、許可することができない。
B51: (1) 用水路並びに分水口等附帯構造物に危害を及ぼす恐れのあるもの。
B52: (2) かんがい用水に支障の恐れのあるもの。
B53: （使用停止及び許可の取消し）
B54: 第１０条 次の各号に該当する場合は、使用停止又は許可の取り消しをすることができる。 この場合使用者の受ける損害については、この土地改良区はその責を負わない。
B55: (1) 第８条の規定に違反したとき。
B56: (2) 使用料の納入を怠ったとき。
B57: ～以下省略～

Sheet 協議
J2: ２９西根許可６００号
J3: 平成２９年１２月１２日
B5: 申請人
H7: 伊達西根堰土地改良区
H8: 理事長 佐久間 利 信
D10: ○○工事に係る協議について（回答）
B12: 平成２８年５月６日付け（２８ 第１１１号）にて協議書のとおり施工することに異議はありません。 なお、施工において下記事項を遵守し、事故・災害等の発生防止に充分留意して下さい。
G16: 記
B18: １．土地改良施設は経年変化により老朽化も進んでいるため、施工により破損等
B19: が発生しないよう注意すること。なお、施工により破損した場合、施工者の
B20: 責任により補修を行うこと。
B21: ２．水道管布設により維持管理に支障となることの無いようにすること。
B22: ３ その他施行において変更及び疑義が生じた場合は、事前に協議すること。
